bitfinex-derivatives/quotes_SOLF0:USTF0_20250716
["timestamp","ask_amount","ask_price","bid_price","bid_amount"]
[1752638615267,4.33616363,162.49,162.48,6.1543]
[1752638615471,4.33616363,162.5,162.41,21.81847021]
[1752638615767,4.33616363,162.5,162.42,5.33805701]
[1752638615971,4.33616363,162.5,162.43,5.33805701]
[1752638616171,4.33616363,162.5,162.44,5.33805701]
[1752638616369,4.33616363,162.5,162.41,21.81847021]
[1752638616572,4.33616363,162.5,162.42,5.31913005]
[1752638616769,4.33616363,162.5,162.48,6.154]
[1752638618069,4.33616363,162.5,162.49,6.1539]
[1752638618470,39.1524,162.53,162.43,4.33616363]
[1752638618674,4.33616363,162.51,162.44,5.31776726]
[1752638618873,4.33616363,162.51,162.49,6.1536]
[1752638619275,4.33616363,162.51,162.43,4.33616363]
[1752638619475,4.33616363,162.51,162.44,5.31678077]
[1752638619676,37.33616363,162.53,162.45,9.6529444]
[1752638619871,37.33616363,162.53,162.45,4.33616363]
[1752638620076,37.33616363,162.53,162.46,5.31480879]
[1752638620372,33.0,162.53,162.47,9.65070818]
[1752638620574,536.21616363,162.55,162.52,6.1526]
[1752638620776,536.21616363,162.55,162.47,4.33616363]
[1752638620978,536.21616363,162.55,162.48,5.31302865]
[1752638621178,536.21616363,162.55,162.53,6.1523]
[1752638622274,542.36786363,162.55,162.52,6.1526]
[1752638624181,6.152,162.54,162.52,6.1526]
[1752638626087,542.36786363,162.55,162.52,6.1526]
[1752638626682,10.48786363,162.55,162.52,6.1526]
[1752638627385,6.152,162.54,162.51,6.153]
[1752638627782,10.48796363,162.55,162.51,6.153]
[1752638630787,6.152,162.54,162.51,6.153]
[1752638631185,4.33616363,162.53,162.5,6.1533]
[1752638633194,4.33616363,162.53,162.51,6.1531]
[1752638634694,183.3715,162.56,162.52,6.1525]
[1752638634894,4.33616363,162.55,162.52,6.1525]
[1752638635588,177.22,162.56,162.46,4.33616363]
[1752638635789,4.33616363,162.58,162.5,4.33616363]
[1752638635990,531.9,162.61,162.54,4.33616363]
[1752638637689,177.24,162.62,162.54,4.33616363]
[1752638637886,177.24,162.62,162.55,5.30643763]
[1752638638087,177.24,162.62,162.56,5.30643763]
[1752638638292,177.24,162.62,162.54,4.33616363]
[1752638638594,177.24,162.62,162.55,5.30369267]
[1752638638793,181.57616363,162.62,162.54,4.33616363]
[1752638638995,4.33616363,162.62,162.59,6.1499]
[1752638639395,4.33616363,162.62,162.58,6.1504]
[1752638639590,4.33616363,162.6,162.58,6.1504]
[1752638640998,177.22,162.63,162.54,4.33616363]
[1752638641296,181.55616363,162.63,162.55,5.29922223]
[1752638641497,181.55616363,162.63,162.54,4.33616363]
[1752638641795,564.88,162.68,162.56,4.33616363]
[1752638641994,4.33616363,162.66,162.58,4.33616363]
[1752638642898,10.48366363,162.66,162.62,6.1488]
[1752638643097,4.33616363,162.64,162.53,12.3044]
[1752638643298,4.33616363,162.62,162.55,4.33616363]
[1752638643993,4.33616363,162.62,162.61,6.1494]
[1752638647202,4.33616363,162.64,162.61,6.1494]
[1752638648103,4.33616363,162.64,162.62,6.1489]
[1752638649104,4.33616363,162.65,162.63,6.1486]
[1752638651209,10.48406363,162.65,162.61,6.1491]
[1752638651402,4.33616363,162.63,162.61,6.1491]
[1752638651599,4.33616363,162.63,162.56,4.33616363]
[1752638652100,10.48436363,162.64,162.56,4.33616363]
[1752638652305,4.33616363,162.62,162.56,4.33616363]
[1752638652707,4.33616363,162.62,162.6,6.1495]
[1752638656811,4.33616363,162.62,162.61,6.1494]
[1752638659513,4.33616363,162.63,162.62,6.1488]
[1752638661915,4.33616363,162.65,162.63,6.1483]
[1752638662420,4.33616363,162.65,162.64,6.1482]
[1752638664212,4.33616363,162.66,162.65,6.1478]
[1752638664413,4.33616363,162.67,162.58,4.33616363]
[1752638664615,0.03976604,162.66,162.59,5.29912255]
[1752638664816,0.03976604,162.66,162.58,4.33616363]
[1752638665113,0.03976604,162.66,162.65,6.1478]
[1752638672024,4.33616363,162.71,162.69,6.1462]
[1752638672224,177.18,162.7,162.64,4.38303549]
[1752638672425,177.18,162.71,162.64,4.33616363]
[1752638673220,177.18,162.71,162.7,6.1459]
[1752638674226,177.18,162.71,162.69,6.1462]
[1752638674422,177.18,162.71,162.66,0.04202626]
[1752638675426,177.18,162.71,162.7,6.146]
[1752638677728,177.12,162.74,162.66,4.37818989]
[1752638679927,177.12,162.74,162.72,6.1449]
[1752638680127,177.12,162.74,162.66,4.37818989]
[1752638680434,4.33616363,162.73,162.66,4.33616363]
[1752638680622,6.145,162.73,162.7,6.1459]
[1752638680825,4.33616363,162.73,162.68,0.0461993]
[1752638681231,10.48126363,162.73,162.7,6.1459]
[1752638682531,4.33616363,162.71,162.59,540.91267519]
[1752638682732,4.33616363,162.66,162.6,5.29100147]
[1752638682932,10.48376363,162.66,162.63,6.1484]
[1752638683232,10.48376363,162.66,162.59,4.33616363]
[1752638683425,187.70376363,162.66,162.6,5.29352337]
[1752638683628,187.70376363,162.66,162.59,4.33616363]
[1752638683829,0.04269371,162.65,162.64,6.1482]
[1752638684332,0.04269371,162.65,162.57,4.33616363]
[1752638684533,0.04269371,162.65,162.62,6.1487]
[1752638684534,4.33616363,162.64,162.62,6.1487]
[1752638684831,4.33616363,162.64,162.55,16.63876363]
[1752638685024,4.33616363,162.62,162.56,5.29620935]
[1752638685228,4.33616363,162.62,162.57,5.29620935]
[1752638685424,4.33616363,162.62,162.58,5.29620935]
[1752638685722,0.04370239,162.61,162.6,6.1494]
[1752638687328,0.04370239,162.61,162.59,6.15]
[1752638687726,4.33616363,162.62,162.59,6.15]
[1752638688127,4.37811373,162.62,162.6,6.1497]
[1752638689833,4.37811373,162.62,162.61,6.1494]
[1752638690431,0.0419501,162.62,162.61,6.1494]
[1752638690637,4.37811373,162.62,162.61,6.1494]
[1752638690935,0.0419501,162.62,162.61,6.1494]
[1752638691234,4.37811373,162.62,162.61,6.1494]
[1752638691434,4.37811373,162.62,162.6,6.1496]
[1752638692732,4.37811373,162.62,162.61,6.1494]
[1752638693433,0.0419501,162.62,162.61,6.1494]
[1752638694237,0.0419501,162.62,162.6,6.1496]
[1752638694435,4.37811373,162.62,162.6,6.1496]
[1752638697644,4.37811373,162.62,162.59,6.15]
[1752638699341,0.0419501,162.62,162.55,4.33616363]
[1752638699538,0.0419501,162.62,162.56,5.30642468]
[1752638699746,0.0419501,162.62,162.55,4.33616363]
[1752638699945,0.0419501,162.62,162.6,6.1495]
[1752638700344,0.0419501,162.62,162.55,4.33616363]
[1752638700645,0.0419501,162.62,162.6,6.1494]
[1752638700845,0.0419501,162.62,162.57,4.33616363]
[1752638701650,0.0419501,162.62,162.59,6.1498]
[1752638702045,10.48446363,162.64,162.55,4.33616363]
[1752638702346,0.04387696,162.62,162.6,6.1496]
[1752638711755,0.04387696,162.62,162.61,6.1494]
[1752638720755,177.26,162.68,162.65,6.1475]
[1752638722164,177.26,162.68,162.65,6.18835676]
[1752638723561,177.26,162.68,162.65,0.04085676]
[1752638724159,177.26,162.68,162.67,6.1471]
[1752638724461,10.48196363,162.71,162.67,6.1471]
[1752638724957,6.1462,162.7,162.66,6.1473]
[1752638725256,4.33616363,162.69,162.66,6.1473]
[1752638726163,10.48256363,162.69,162.66,6.1473]
[1752638729363,4.33616363,162.69,162.66,6.1473]
[1752638735170,10.48256363,162.69,162.66,6.1473]
[1752638735369,10.48256363,162.69,162.65,6.18855676]
[1752638737471,4.33616363,162.69,162.66,6.1474]
[1752638738271,4.33616363,162.69,162.67,6.1471]
[1752638738469,181.61616363,162.73,162.65,4.37702039]
[1752638739369,4.33616363,162.75,162.67,4.33616363]
[1752638739576,10.48046363,162.75,162.67,4.33616363]
[1752638739975,10.48046363,162.75,162.71,6.1456]
[1752638743073,6.1447,162.74,162.69,0.0420506]
[1752638743274,4.33616363,162.75,162.69,0.0420506]
[1752638743976,10.48036363,162.75,162.7,6.1458]
[1752638744375,4.33616363,162.73,162.69,0.0420506]
[1752638745074,4.33616363,162.73,162.69,6.1881506]
[1752638745479,10.48106363,162.73,162.69,6.1881506]
[1752638747479,10.48106363,162.73,162.69,0.0420506]
[1752638749080,10.48106363,162.73,162.69,6.1882506]
[1752638749380,4.33616363,162.71,162.69,0.0420506]
[1752638749776,6.146,162.7,162.69,0.0420506]
[1752638750980,10.48186363,162.71,162.69,0.0420506]
[1752638751682,6.146,162.7,162.69,0.0420506]
[1752638751885,4.33616363,162.71,162.63,132.0898198]
[1752638752182,4.33616363,162.68,162.63,132.0898198]
[1752638752384,4.33616363,162.66,162.56,5.16582114]
[1752638752584,4.33616363,162.64,162.57,9.61793256]
[1752638752786,4.33616363,162.64,162.57,4.33616363]
[1752638753185,0.04076581,162.62,162.57,4.33616363]
[1752638753384,0.04076581,162.62,162.58,5.28475895]
[1752638753584,0.04076581,162.62,162.59,5.28475895]
[1752638753786,0.04076581,162.62,162.57,4.33616363]
[1752638753985,0.04076581,162.62,162.58,5.28420214]
[1752638754284,0.04076581,162.62,162.59,5.28420214]
[1752638754487,0.04076581,162.62,162.57,4.33616363]
[1752638754777,0.04076581,162.62,162.61,6.1494]
[1752638756081,4.33616363,162.68,162.61,9.62116999]
[1752638756282,4.33616363,162.68,162.62,5.28500636]
[1752638756483,4.33616363,162.68,162.66,6.1472]
[1752638757584,210.12,162.7,162.66,6.1472]
[1752638757785,4.33616363,162.69,162.66,6.1472]
[1752638758486,4.33616363,162.69,162.67,6.1471]
[1752638759685,4.33616363,162.69,162.65,0.04631145]
[1752638760389,4.33616363,162.67,162.65,0.04631145]
[1752638760787,4.33616363,162.67,162.65,6.19401145]
[1752638761187,4.33616363,162.67,162.65,0.04631145]
[1752638763088,4.33616363,162.67,162.65,6.19411145]
[1752638763385,4.33616363,162.67,162.65,0.04631145]
[1752638764989,4.33616363,162.67,162.55,133.36309597]
[1752638765190,4.33616363,162.62,162.59,6.1499]
[1752638766086,4.33616363,162.62,162.6,6.1496]
[1752638766389,4.37523045,162.62,162.6,6.1496]
[1752638767592,0.03906682,162.62,162.61,6.1494]
[1752638767987,220.76376363,162.66,162.62,6.1488]
[1752638768390,0.0436343,162.63,162.62,6.1488]
[1752638777497,3.43e-05,162.63,162.62,6.1488]
[1752638782499,3.43e-05,162.63,162.61,6.19493193]
[1752638783398,4.33616363,162.62,162.61,6.19493193]
[1752638783601,4.33616363,162.62,162.61,0.04573193]
[1752638784503,6.1489343,162.63,162.61,0.04573193]
[1752638784693,4.33616363,162.62,162.61,0.04573193]
[1752638786303,4.33616363,162.62,162.61,6.19513193]
[1752638787202,4.33616363,162.62,162.61,0.04573193]
[1752638794008,10.48516363,162.62,162.61,0.04573193]
[1752638794306,4.33616363,162.62,162.61,0.04573193]
[1752638796410,4.33619793,162.63,162.61,6.19513193]
[1752638796607,3.43e-05,162.63,162.61,0.04573193]
[1752638797007,6.1487343,162.63,162.61,0.04573193]
[1752638797208,3.43e-05,162.63,162.61,0.04573193]
[1752638797610,3.43e-05,162.63,162.62,6.149]
[1752638810717,3.43e-05,162.63,162.62,11.41492217]
[1752638812624,3.43e-05,162.63,162.62,6.149]
[1752638816224,3.43e-05,162.63,162.62,10.48516363]
[1752638816822,3.43e-05,162.63,162.62,6.149]
[1752638821330,3.43e-05,162.63,162.61,0.04573193]
[1752638821630,4.33619793,162.63,162.61,0.04573193]
[1752638822331,4.33619793,162.63,162.61,6.19503193]
[1752638826033,6.149,162.62,162.61,0.04573193]
[1752638826235,4.33619793,162.63,162.61,0.04573193]
[1752638826737,10.48509793,162.63,162.61,0.04573193]
[1752638827634,4.33619793,162.63,162.61,0.04573193]
[1752638828235,4.33619793,162.63,162.61,6.19483193]
[1752638830031,4.33619793,162.63,162.62,6.149]
[1752638832636,3.43e-05,162.63,162.62,6.149]
[1752638834531,3.43e-05,162.63,162.62,10.48516363]
[1752638834731,3.43e-05,162.63,162.62,6.149]
[1752638834934,3.43e-05,162.63,162.62,15.75045306]
[1752638843744,3.43e-05,162.63,162.62,10.48516363]
[1752638843946,3.43e-05,162.63,162.62,6.149]
[1752638846143,3.43e-05,162.63,162.62,15.73431941]
[1752638848047,3.43e-05,162.63,162.62,15.73250718]
[1752638848846,33.0,162.72,162.7,6.1459]
[1752638849247,33.0,162.72,162.65,4.33616363]
[1752638850040,33.0,162.72,162.67,0.03918648]
[1752638850650,33.0,162.72,162.71,6.1456]
[1752638852644,531.48,162.73,162.72,6.1452]
[1752638852850,4.33616363,162.74,162.67,0.03918648]
[1752638853148,4.33616363,162.74,162.67,4.33616363]
[1752638853350,4.33616363,162.74,162.69,0.04361336]
[1752638854145,4.33616363,162.74,162.73,6.1448]
[1752638856951,181.83616363,162.76,162.75,6.1441]
[1752638857851,181.83616363,162.76,162.74,0.03976724]
[1752638858053,181.83616363,162.76,162.64,16.63246363]
[1752638858248,4.33616363,162.72,162.65,5.23047784]
[1752638858448,4.33616363,162.72,162.71,6.1456]
[1752638859350,0.04478886,162.73,162.69,4.33616363]
[1752638859548,8.886e-05,162.73,162.71,4.33616363]
[1752638859752,4.33616363,162.78,162.71,4.33616363]
[1752638859949,4.33616363,162.78,162.77,6.1433]
[1752638860648,4.33616363,162.78,162.76,6.18476122]
[1752638861149,4.33616363,162.78,162.76,0.04126122]
[1752638862142,10.47926363,162.78,162.76,0.04126122]
[1752638863346,4.33616363,162.77,162.76,6.18496122]
[1752638866556,4.33616363,162.77,162.76,0.04126122]
[1752638867555,4.33616363,162.77,162.68,12.2929]
[1752638867947,4.33616363,162.74,162.73,6.1446]
[1752638868151,4.33616363,162.74,162.65,4.33616363]
[1752638868456,4.33616363,162.7,162.63,16.63276363]
[1752638869056,4.33616363,162.7,162.68,6.1465]
[1752638869256,4.33616363,162.7,162.63,4.33616363]
[1752638870056,4.33616363,162.7,162.61,182.15616363]
[1752638870459,4.33616363,162.68,162.61,182.15616363]
[1752638870755,0.04056967,162.67,162.61,182.15616363]
[1752638871256,0.04056967,162.67,162.66,6.1475]
[1752638876356,6.967e-05,162.67,162.66,6.1475]
[1752638876764,6.967e-05,162.67,162.66,11.37785006]
[1752638884163,6.967e-05,162.67,162.66,15.71401369]
[1752638892667,6.967e-05,162.67,162.66,193.45401369]
[1752638893768,6.967e-05,162.67,162.66,188.22366363]
[1752638893966,6.967e-05,162.67,162.66,193.46867703]
[1752638894763,6.967e-05,162.67,162.66,189.1325134]
[1752638897070,6.967e-05,162.67,162.66,11.3925134]
[1752638899573,6.967e-05,162.67,162.66,6.1475]
[1752638899769,6.967e-05,162.67,162.65,0.03892902]
[1752638899975,4.3362333,162.67,162.61,5.15903708]
[1752638900175,4.33616363,162.64,162.57,179.18]
[1752638900474,4.33616363,162.64,162.58,5.24996504]
[1752638900772,33.0,162.7,162.59,5.24996504]
[1752638900973,4.33616363,162.65,162.62,6.1487]
[1752638902370,4.33616363,162.65,162.57,179.18]
[1752638902569,4.33616363,162.63,162.57,179.18]
[1752638903877,4.33616363,162.63,162.54,127.72483157]
[1752638903878,4.33616363,162.63,162.54,132.0609952]
[1752638904079,4.33616363,162.61,162.55,185.18397422]
[1752638904279,4.33616363,162.59,162.54,127.72483157]
[1752638904481,0.04621637,162.6,162.54,127.72483157]
[1752638904777,4.33616363,162.58,162.54,127.72483157]
[1752638905487,4.33616363,162.58,162.55,6.1513]
[1752638907185,4.33616363,162.58,162.54,133.87673157]
[1752638907391,4.33616363,162.56,162.51,180.0]
[1752638907889,4.33616363,162.56,162.48,184.29616363]
[1752638908793,4.33616363,162.56,162.53,6.1521]
[1752638909491,4.33616363,162.58,162.5,4.33616363]
[1752638909995,4.33616363,162.58,162.55,6.1514]
[1752638910796,4.33616363,162.58,162.56,6.1512]
[1752638911095,4.33616363,162.58,162.5,4.33616363]
[1752638912595,33.0,162.63,162.5,4.33616363]
[1752638912796,6.1498,162.6,162.54,6.1517]
[1752638912997,4.33616363,162.58,162.54,6.1517]
[1752638913497,4.33616363,162.58,162.53,6.1523]
[1752638913997,4.33616363,162.58,162.48,179.96]
[1752638913998,4.33616363,162.56,162.48,4.33616363]
[1752638914195,4.33616363,162.56,162.52,6.1527]
[1752638914998,4.33616363,162.56,162.48,4.33616363]
[1752638915199,4.33616363,162.58,162.5,4.33616363]
[1752638915389,4.33616363,162.58,162.54,6.1518]
[1752638916290,4.33616363,162.6,162.55,6.1516]
[1752638917597,4.33616363,162.6,162.52,4.33616363]
[1752638918598,4.33616363,162.6,162.55,6.1513]
[1752638918897,4.33616363,162.58,162.51,4.33616363]
[1752638919288,4.33616363,162.58,162.53,6.1521]
[1752638919899,4.33616363,162.56,162.47,4.33616363]
[1752638920097,4.33616363,162.56,162.48,5.14005298]
[1752638920397,4.33616363,162.56,162.47,4.33616363]
[1752638920697,4.33616363,162.56,162.49,4.33616363]
[1752638921596,4.33616363,162.56,162.45,180.22]
[1752638921797,4.33616363,162.56,162.49,4.33616363]
[1752638922595,4.33616363,162.56,162.51,6.1531]
[1752638923693,4.33616363,162.56,162.52,6.1527]
[1752638925203,4.33616363,162.56,162.51,6.153]
[1752638925401,4.33616363,162.56,162.48,4.33616363]
[1752638925793,4.33616363,162.54,162.46,4.33616363]
[1752638925998,4.33616363,162.54,162.47,5.13630424]
[1752638926198,4.33616363,162.54,162.46,4.33616363]
[1752638926398,4.33616363,162.54,162.47,5.1356747]
[1752638926703,4.33616363,162.54,162.46,4.33616363]
[1752638927004,4.33616363,162.54,162.47,5.1359153]
[1752638927305,4.33616363,162.54,162.46,4.33616363]
[1752638927499,4.33616363,162.54,162.47,5.13571135]
[1752638927803,4.33616363,162.52,162.48,6.1542]
[1752638928295,4.33616363,162.52,162.45,184.55616363]
[1752638928604,10.48906363,162.52,162.47,6.1544]
[1752638929798,10.48906363,162.52,162.45,184.55616363]
[1752638929799,4.33616363,162.52,162.46,6.1549]
[1752638930303,6.1532,162.51,162.46,6.1549]
[1752638930604,6.1532,162.51,162.47,6.1546]
[1752638931204,10.48966363,162.5,162.46,6.1549]
[1752638932010,4.33616363,162.5,162.47,6.1546]
[1752638932507,4.33616363,162.5,162.43,129.77956157]
[1752638932708,10.48976363,162.5,162.46,6.1547]
[1752638934209,4.33616363,162.5,162.47,6.1546]
[1752638935810,4.33616363,162.5,162.46,6.1549]
[1752638936002,4.33616363,162.48,162.43,125.44339794]
[1752638936409,4.33616363,162.48,162.44,5.14092636]
[1752638936611,4.33616363,162.48,162.43,125.44339794]
[1752638936811,4.33616363,162.48,162.44,5.14092636]
[1752638937011,4.33616363,162.48,162.41,4.33616363]
[1752638937310,10.49056363,162.48,162.44,6.1556]
[1752638937812,6.1547,162.47,162.41,4.33616363]
[1752638938111,4.33616363,162.48,162.42,5.1425648]
[1752638938310,33.0,162.53,162.4,180.18]
[1752638938311,4.33616363,162.46,162.4,180.18]
[1752638938511,4.33616363,162.44,162.36,5.15903708]
[1752638938710,4.33616363,162.44,162.37,5.14527398]
[1752638938908,10.49226363,162.44,162.4,6.1571]
[1752638939104,4.33616363,162.44,162.36,9.49520071]
[1752638939307,4.33616363,162.44,162.37,5.14527556]
[1752638939514,6.1564,162.43,162.39,6.1575]
[1752638939812,4.33616363,162.44,162.4,5.14527556]
[1752638940015,4.33616363,162.44,162.36,9.49520071]
[1752638940016,4.33616363,162.44,162.41,11.30217556]
[1752638940209,4.33616363,162.44,162.37,5.15903708]
[1752638940407,4.33616363,162.44,162.38,5.14960203]
[1752638940607,4.33616363,162.44,162.4,6.1571]
[1752638940813,4.33616363,162.44,162.41,5.14960203]
[1752638941017,4.33616363,162.44,162.42,5.14960203]
[1752638941213,4.33616363,162.44,162.4,6.1571]
[1752638941516,4.33616363,162.44,162.41,5.1533562]
[1752638941711,4.33616363,162.44,162.4,6.1571]
[1752638941915,4.33616363,162.44,162.41,5.15141867]
[1752638942116,10.49216363,162.44,162.4,6.1571]
[1752638942316,10.49216363,162.44,162.41,5.15515604]
[1752638942513,10.49216363,162.44,162.42,5.15515604]
[1752638942710,10.49216363,162.44,162.4,6.1571]
[1752638943015,10.49216363,162.44,162.41,5.15331843]
[1752638943210,10.49216363,162.44,162.42,5.15331843]
[1752638943415,10.49216363,162.44,162.4,6.1571]
[1752638943621,4.33616363,162.46,162.41,5.1558324]
[1752638943813,4.33616363,162.48,162.42,5.1558324]
[1752638944009,4.33616363,162.46,162.43,5.15288399]
[1752638944213,10.49136363,162.46,162.41,6.1566]
[1752638944419,10.49136363,162.46,162.42,5.15804576]
[1752638944614,10.49196363,162.44,162.43,5.15804576]
[1752638945122,10.49196363,162.44,162.39,6.1574]
[1752638945415,6.1563,162.43,162.4,5.1589031]
[1752638945612,4.33616363,162.44,162.41,5.1589031]
[1752638945819,4.33616363,162.44,162.42,5.1589031]
[1752638946119,4.33616363,162.44,162.38,5.15903708]
[1752638946316,10.49196363,162.44,162.39,5.15927951]
[1752638946516,10.49196363,162.44,162.4,5.15927951]
[1752638946816,10.49196363,162.44,162.41,5.15927951]
[1752638947020,10.49196363,162.44,162.42,5.15927951]
[1752638947209,4.33616363,162.44,162.38,5.15903708]
[1752638947411,4.33616363,162.44,162.39,5.15982376]
[1752638947615,4.33616363,162.44,162.4,5.15982376]
[1752638947916,4.33616363,162.44,162.41,5.15982376]
[1752638948216,4.33616363,162.42,162.37,6.1583]
[1752638948423,10.49296363,162.42,162.38,5.16062685]
[1752638948617,4.33616363,162.42,162.39,11.31822685]
[1752638948818,33.0,162.47,162.4,5.16062685]
[1752638949122,10.49256363,162.43,162.38,6.1579]
[1752638949324,4.33616363,162.43,162.39,5.15964746]
[1752638949519,4.33616363,162.43,162.4,5.15964746]
[1752638949719,4.33616363,162.43,162.36,5.14685829]
[1752638950016,4.33616363,162.43,162.37,5.1583783]
[1752638950222,6.1572,162.41,162.38,5.15853809]
[1752638950421,6.1572,162.41,162.36,6.1586]
[1752638950623,6.1572,162.41,162.37,5.15705782]
[1752638950826,6.1567,162.42,162.38,5.15705782]
[1752638951022,6.1567,162.42,162.39,5.15690036]
[1752638951219,4.33616363,162.43,162.37,6.1582]
[1752638951524,4.33616363,162.43,162.38,5.1572501]
[1752638951825,6.1572,162.41,162.37,6.1582]
[1752638952020,6.1572,162.41,162.38,5.15586856]
[1752638952322,6.1572,162.41,162.37,6.1582]
[1752638952524,6.1572,162.41,162.38,5.15490108]
[1752638952720,6.1572,162.41,162.37,6.1582]
[1752638953024,6.1572,162.41,162.38,5.15490108]
[1752638953222,6.1567,162.42,162.38,6.158]
[1752638953420,4.33616363,162.43,162.34,189.56253263]
[1752638953622,4.33616363,162.43,162.35,10.29973353]
[1752638953824,6.1569,162.41,162.37,6.1582]
[1752638954022,6.1569,162.41,162.38,5.15336453]
[1752638954223,4.33616363,162.43,162.39,5.15336453]
[1752638954423,4.33616363,162.43,162.35,5.146369]
[1752638954620,6.1568,162.42,162.38,6.158]
[1752638955026,4.33616363,162.46,162.39,5.15255642]
[1752638955223,10.49156363,162.46,162.42,6.1565]
[1752638955423,10.49156363,162.46,162.37,5.146369]
[1752638955424,4.33616363,162.46,162.37,5.146369]
[1752638955723,4.33616363,162.46,162.39,4.33616363]
[1752638955920,6.1556,162.45,162.4,5.15230583]
[1752638956122,6.1556,162.45,162.41,5.15230583]
[1752638956421,6.1556,162.45,162.39,4.33616363]
[1752638956627,6.1556,162.45,162.4,5.15297479]
[1752638956823,6.1556,162.45,162.41,5.15297479]
[1752638957024,6.1556,162.45,162.39,4.33616363]
[1752638957325,6.1559,162.44,162.4,11.31007479]
[1752638957522,6.1559,162.44,162.4,6.1571]
[1752638958027,6.1564,162.43,162.37,5.146369]
[1752638958227,4.33616363,162.44,162.38,5.15379965]
[1752638958421,4.33616363,162.44,162.39,5.15379965]
[1752638958626,10.49216363,162.44,162.39,6.1575]
[1752638959724,6.156,162.44,162.4,6.1573]
[1752638962131,6.1562,162.43,162.39,6.1575]
[1752638962628,4.33616363,162.47,162.38,4.33616363]
[1752638962925,4.33616363,162.47,162.39,5.15924431]
[1752638963123,532.08,162.49,162.42,4.33616363]
[1752638963322,37.33616363,162.52,162.44,4.33616363]
[1752638963728,6.1537,162.5,162.46,6.1548]
[1752638964231,37.33616363,162.52,162.44,4.33616363]
[1752638964730,6.1539,162.49,162.45,6.1552]
[1752638965526,6.1535,162.5,162.46,6.1549]
[1752638966031,37.33616363,162.52,162.44,4.33616363]
[1752638967034,6.1537,162.5,162.45,6.1552]
[1752638967234,6.1537,162.5,162.44,4.33616363]
[1752638967430,37.33616363,162.52,162.44,4.33616363]
[1752638967631,6.1539,162.49,162.45,6.1551]
[1752638967831,6.1539,162.49,162.44,4.33616363]
[1752638968437,6.1539,162.49,162.45,6.1553]
[1752638969234,6.1534,162.51,162.44,4.33616363]
[1752638969442,6.1534,162.51,162.45,5.17081565]
[1752638969640,6.1534,162.51,162.44,4.33616363]
[1752638969939,6.1534,162.51,162.45,5.17060817]
[1752638970135,6.1534,162.51,162.47,6.1544]
[1752638970343,6.1528,162.52,162.46,4.33616363]
[1752638970539,179.64,162.54,162.49,6.1537]
[1752638970740,185.7921,162.54,162.48,4.33616363]
[1752638971240,179.64,162.54,162.5,6.1532]
[1752638972442,179.64,162.54,162.49,6.1537]
[1752638972443,185.792,162.54,162.49,6.1537]
[1752638973144,185.792,162.54,162.5,6.1534]
[1752638973638,185.792,162.54,162.48,4.33616363]
[1752638974041,190.12816363,162.54,162.46,4.33616363]
[1752638974734,183.97616363,162.54,162.46,4.33616363]
[1752638974933,4.33616363,162.52,162.46,4.33616363]
[1752638975443,10.48916363,162.52,162.47,6.1544]
[1752638975939,6.1532,162.51,162.46,6.1547]
[1752638976137,4.33616363,162.52,162.46,6.1547]
[1752638976336,4.33616363,162.5,162.46,6.1547]
[1752638976535,4.33616363,162.5,162.42,4.33616363]
[1752638976740,4.33616363,162.5,162.43,5.17250895]
[1752638976940,4.33616363,162.5,162.44,5.17250895]
[1752638977140,4.33616363,162.5,162.42,4.33616363]
[1752638977336,4.33616363,162.5,162.43,5.17248547]
[1752638977644,4.33616363,162.5,162.46,6.1548]
[1752638979042,4.33616363,162.5,162.45,6.1553]
[1752638979240,10.48996363,162.5,162.42,4.33616363]
[1752638979435,33.0,162.53,162.44,6.1556]
[1752638979642,33.0,162.53,162.39,4.33616363]
[1752638979643,4.33616363,162.48,162.39,4.33616363]
[1752638979843,4.33616363,162.46,162.4,5.17286127]
[1752638980044,4.33616363,162.46,162.42,6.1563]
[1752638981142,4.33616363,162.46,162.43,6.1561]
[1752638983847,4.33616363,162.46,162.42,6.1564]
[1752638984752,4.33616363,162.46,162.41,6.1568]
[1752638985650,4.33616363,162.44,162.4,6.1572]
[1752638985847,4.33616363,162.44,162.37,536.39616363]
[1752638985848,4.33616363,162.42,162.34,1.07172554]
[1752638986149,4.33616363,162.4,162.38,6.1578]
[1752638986549,4.33616363,162.42,162.38,6.1578]
[1752638988152,4.33616363,162.4,162.34,1.07172554]
[1752638988454,4.33616363,162.4,162.35,5.17466021]
[1752638988751,4.33616363,162.4,162.33,4.33616363]
[1752638989052,4.33616363,162.4,162.34,5.17443705]
[1752638989249,4.33616363,162.4,162.31,4.33616363]
[1752638989552,4.33616363,162.4,162.32,5.17423822]
[1752638989752,4.33616363,162.4,162.33,5.17423822]